fUSD/lending_fUSD_20250616
["ID","MTS","AMOUNT","RATE_DAILY","PERIOD"]
[366200372,1750114243808,-490.0,0.00016411,2]
[366200374,1750114243818,-490.0,0.00016411,2]
[366200376,1750114243827,-490.0,0.00016411,2]
[366200378,1750114243837,-490.0,0.00016411,2]
[366200380,1750114243847,-490.0,0.00016411,2]
[366200382,1750114243857,-520.81,0.00016411,2]
[366200384,1750114243867,-490.0,0.00016411,2]
[366200386,1750114243878,-490.0,0.00016411,2]
[366200388,1750114243888,-490.0,0.00016411,2]
[366200390,1750114243899,-490.0,0.00016411,2]
[366200392,1750114243908,-490.0,0.00016411,2]
[366200394,1750114243918,-490.0,0.00016411,2]
[366200396,1750114243927,-490.0,0.00016411,2]
[366200397,1750114243937,-490.0,0.00016411,2]
[366200400,1750114243947,-490.0,0.00016411,2]
[366200401,1750114243958,-490.0,0.00016411,2]
[366200404,1750114243968,-490.0,0.00016411,2]
[366200406,1750114243977,-490.0,0.00016411,2]
[366200409,1750114243987,-490.0,0.00016411,2]
[366200413,1750114243997,-517.07,0.00016411,2]
[366200416,1750114244007,-490.0,0.00016411,2]
[366200419,1750114244017,-490.0,0.00016411,2]
[366200421,1750114244027,-490.0,0.00016411,2]
[366200424,1750114244036,-1687.37,0.00016411,2]
[366200426,1750114244046,-4478.01,0.00016411,2]
[366200428,1750114244056,-659.58,0.00016411,2]
[366200430,1750114244066,-490.0,0.00016411,2]
[366200432,1750114244077,-490.0,0.00016411,2]
[366200434,1750114244087,-490.0,0.00016411,2]
[366200436,1750114244097,-1699.08,0.00016411,2]
[366200438,1750114244108,-692.68,0.00016411,2]
[366200440,1750114244118,-490.0,0.00016411,2]
[366200442,1750114244128,-745.97,0.00016411,2]
[366200444,1750114244137,-490.0,0.00016411,2]
[366200446,1750114244147,-645.37,0.00016411,2]
[366200448,1750114244158,-490.0,0.00016411,2]
[366200450,1750114244167,-1307.87,0.00016411,2]
[366200452,1750114244177,-490.0,0.00016411,2]
[366200454,1750114244186,-490.0,0.00016411,2]
[366200456,1750114244196,-490.0,0.00016411,2]
[366200458,1750114244207,-545.55,0.00016411,2]
[366200460,1750114244218,-490.0,0.00016411,2]
[366200462,1750114244228,-787.51,0.00016411,2]
[366200464,1750114244237,-490.0,0.00016411,2]
[366200466,1750114244247,-189.41968252,0.00016411,2]
[366200468,1750114244257,-1361.65,0.00016411,2]
[366200470,1750114244267,-490.0,0.00016411,2]
[366200472,1750114244278,-662.96,0.00016411,2]
[366200474,1750114244288,-589.78,0.00016411,2]
[366200476,1750114244298,-490.0,0.00016411,2]
[366200478,1750114244307,-738.84,0.00016411,2]
[366200480,1750114244316,-551.73,0.00016411,2]
[366200482,1750114244326,-1771.84,0.00016411,2]
[366200484,1750114244338,-1247.9,0.00016411,2]
[366200486,1750114244348,-490.0,0.00016411,2]
[366200488,1750114244357,-490.0,0.00016411,2]
[366200490,1750114244367,-1665.96,0.00016411,2]
[366200492,1750114244377,-490.0,0.00016411,2]
[366200494,1750114244387,-584.23,0.00016411,2]
[366200496,1750114244396,-1064.35,0.00016411,2]
[366200498,1750114244407,-490.0,0.00016411,2]
[366200500,1750114244417,-490.0,0.00016411,2]
[366200502,1750114244427,-2551.02,0.00016411,2]
[366200504,1750114244437,-818.48,0.00016411,2]
[366200506,1750114244446,-490.0,0.00016411,2]
[366200507,1750114244457,-490.0,0.00016411,2]
[366200510,1750114244467,-871.82,0.00016411,2]
[366200512,1750114244475,-490.0,0.00016411,2]
[366200513,1750114244485,-641.59,0.00016411,2]
[366200515,1750114244494,-490.0,0.00016411,2]
[366200518,1750114244504,-490.0,0.00016411,2]
[366200519,1750114244513,-490.0,0.00016411,2]
[366200522,1750114244523,-490.0,0.00016411,2]
[366200524,1750114244533,-490.0,0.00016411,2]
[366200526,1750114244542,-3775.8,0.00016411,2]
[366200528,1750114244551,-370.95100729,0.00016411,2]
[366200530,1750114244561,-490.0,0.00016411,2]
[366200531,1750114244570,-492.29,0.00016411,2]
[366200533,1750114244580,-490.0,0.00016411,2]
[366200535,1750114244589,-490.0,0.00016411,2]
[366200537,1750114244599,-490.0,0.00016411,2]
[366200539,1750114244609,-490.0,0.00016411,2]
[366200541,1750114244618,-490.0,0.00016411,2]
[366200543,1750114244628,-490.0,0.00016411,2]
[366200545,1750114244637,-490.0,0.00016411,2]
[366200547,1750114244647,-490.0,0.00016411,2]
[366200549,1750114244656,-967.08,0.00016411,2]
[366200551,1750114244666,-1230.81,0.00016411,2]
[366200553,1750114244676,-598.95,0.00016411,2]
[366200555,1750114244686,-490.0,0.00016411,2]
[366200557,1750114244696,-836.23,0.00016411,2]
[366200559,1750114244707,-490.0,0.00016411,2]
[366200561,1750114244717,-579.13,0.00016411,2]
[366200563,1750114244726,-490.0,0.00016411,2]
[366200565,1750114244738,-490.0,0.00016411,2]
[366200567,1750114244751,-490.0,0.00016411,2]
[366200570,1750114244766,-729.0,0.00016411,2]
[366200572,1750114244781,-576.67775027,0.00016411,2]
[366200575,1750114244794,-490.0,0.00016411,2]
[366200577,1750114244807,-490.0,0.00016411,2]
[366200579,1750114244820,-490.0,0.00016411,2]
[366200581,1750114244831,-490.0,0.00016411,2]
[366200583,1750114244843,-4087.42,0.00016411,2]
[366200586,1750114244856,-490.0,0.00016411,2]
[366200588,1750114244868,-490.0,0.00016411,2]
[366200590,1750114244881,-729.34,0.00016411,2]
[366200592,1750114244895,-828.39,0.00016411,2]
[366200594,1750114244907,-490.0,0.00016411,2]
[366200596,1750114244920,-736.8,0.00016411,2]
[366200598,1750114244933,-490.0,0.00016411,2]
[366200600,1750114244947,-495.05,0.00016411,2]
[366200603,1750114244964,-234.2963336,0.00016412,2]
[366200605,1750114244977,-490.0,0.00016412,2]
[366200606,1750114244989,-490.0,0.00016412,2]
[366200607,1750114245002,-490.0,0.00016412,2]
[366200608,1750114245012,-535.17,0.00016412,2]
[366200609,1750114245024,-490.0,0.00016412,2]
[366200610,1750114245036,-490.0,0.00016412,2]
[366200611,1750114245051,-311.30435507,0.00016412,2]
[366200612,1750114245064,-490.0,0.00016412,2]
[366200613,1750114245076,-490.0,0.00016412,2]
[366200614,1750114245089,-490.0,0.00016412,2]
[366200615,1750114245101,-490.0,0.00016412,2]
[366200616,1750114245114,-490.0,0.00016412,2]
[366200617,1750114245126,-490.0,0.00016412,2]
[366200619,1750114245138,-490.0,0.00016412,2]
[366200621,1750114245151,-375.21512804,0.00016412,2]
[366200623,1750114245163,-490.0,0.00016412,2]
[366200625,1750114245175,-490.0,0.00016412,2]
[366200627,1750114245188,-490.0,0.00016412,2]
[366200629,1750114245201,-490.0,0.00016412,2]
[366200632,1750114245215,-490.0,0.00016412,2]
[366200634,1750114245228,-490.0,0.00016412,2]
[366200636,1750114245240,-490.0,0.00016412,2]
[366200638,1750114245253,-490.0,0.00016412,2]
[366200640,1750114245267,-809.95748097,0.00016417,2]
[366200643,1750114245279,-228.3,0.00016437,2]
[366200645,1750114245291,-180.1,0.00016438,2]
[366200647,1750114245305,-293.98574344,0.00016438,2]
[366200649,1750114245317,-156.55935743,0.00016441,2]
[366200652,1750114245329,-809.95748097,0.00016452,2]
[366200654,1750114245342,-3897.255,0.0001647,2]
[366200656,1750114245357,-158.14369423,0.00016475,2]
[366200658,1750114245368,-216.65458595,0.00016476,2]
[366200660,1750114245380,-809.95748097,0.00016486,2]
[366200663,1750114245392,-156.55935743,0.00016498,2]
[366200665,1750114245404,-50000.0,0.000165,2]
[366200667,1750114245415,-1876.6193735,0.000165,2]
[366200669,1750114245431,-809.95748097,0.00016521,2]
[366200672,1750114245443,-2000.0,0.0001653,2]
[366200673,1750114245457,-500.0,0.0001653,2]
[366200676,1750114245468,-200.0,0.0001653,2]
[366200678,1750114245480,-809.95748097,0.00016555,2]
[366200680,1750114245491,-156.55935743,0.00016556,2]
[366200682,1750114245502,-490.0,0.00016574,2]
[366200684,1750114245513,-490.0,0.00016574,2]
[366200686,1750114245524,-490.0,0.00016574,2]
[366200688,1750114245534,-490.0,0.00016574,2]
[366200690,1750114245546,-981.1,0.00016574,2]
[366200692,1750114245556,-490.0,0.00016574,2]
[366200695,1750114245568,-686.76,0.00016574,2]
[366200698,1750114245582,-1369.72,0.00016574,2]
[366200700,1750114245596,-490.0,0.00016574,2]
[366200703,1750114245609,-490.0,0.00016574,2]
[366200705,1750114245620,-1538.06,0.00016574,2]
[366200708,1750114245631,-490.0,0.00016574,2]
[366200711,1750114245641,-490.0,0.00016574,2]
[366200713,1750114245651,-490.0,0.00016574,2]
[366200715,1750114245661,-490.0,0.00016574,2]
[366200717,1750114245672,-490.0,0.00016574,2]
[366200719,1750114245685,-996.47,0.00016574,2]
[366200722,1750114245697,-490.0,0.00016574,2]
[366200724,1750114245713,-490.0,0.00016574,2]
[366200727,1750114245725,-1278.98,0.00016574,2]
[366200731,1750114245737,-490.0,0.00016574,2]
[366200734,1750114245749,-490.0,0.00016574,2]
[366200738,1750114245760,-490.0,0.00016574,2]
[366200743,1750114245772,-490.0,0.00016574,2]
[366200746,1750114245783,-490.0,0.00016575,2]
[366200748,1750114245794,-490.0,0.00016575,2]
[366200750,1750114245804,-490.0,0.00016575,2]
[366200752,1750114245815,-490.0,0.00016575,2]
[366200754,1750114245827,-490.0,0.00016575,2]
[366200757,1750114245838,-490.0,0.00016575,2]
[366200759,1750114245849,-490.0,0.00016575,2]
[366200761,1750114245860,-490.0,0.00016575,2]
[366200763,1750114245872,-490.0,0.00016575,2]
[366200765,1750114245883,-490.0,0.00016575,2]
[366200767,1750114245895,-490.0,0.00016575,2]
[366200769,1750114245906,-490.0,0.00016575,2]
[366200771,1750114245917,-252.00985878,0.00016575,2]
[366200773,1750114245927,-490.0,0.00016575,2]
[366200776,1750114245938,-490.0,0.00016575,2]
[366200778,1750114245949,-490.0,0.00016575,2]
[366200780,1750114245963,-490.0,0.00016575,2]
[366200782,1750114245975,-490.0,0.00016575,2]
[366200784,1750114245987,-490.0,0.00016575,2]
[366200786,1750114245998,-490.0,0.00016575,2]
[366200788,1750114246009,-520.81,0.00016575,2]
[366200790,1750114246021,-490.0,0.00016575,2]
[366200793,1750114246033,-490.0,0.00016575,2]
[366200795,1750114246045,-490.0,0.00016575,2]
[366200797,1750114246057,-490.0,0.00016575,2]
[366200799,1750114246069,-490.0,0.00016575,2]
[366200801,1750114246080,-490.0,0.00016575,2]
[366200804,1750114246097,-490.0,0.00016575,2]
[366200806,1750114246109,-490.0,0.00016575,2]
[366200808,1750114246119,-490.0,0.00016575,2]
[366200810,1750114246131,-490.0,0.00016575,2]
[366200812,1750114246142,-490.0,0.00016575,2]
[366200814,1750114246153,-490.0,0.00016575,2]
[366200816,1750114246165,-490.0,0.00016575,2]
[366200818,1750114246176,-517.07,0.00016575,2]
[366200821,1750114246187,-1010.78,0.00016575,2]
[366200823,1750114246199,-490.0,0.00016575,2]
[366200825,1750114246212,-490.0,0.00016575,2]
[366200827,1750114246224,-490.0,0.00016575,2]
[366200829,1750114246235,-1687.37,0.00016575,2]
[366200831,1750114246247,-4478.01,0.00016575,2]
[366200834,1750114246258,-490.0,0.00016575,2]
[366200836,1750114246269,-659.58,0.00016575,2]
[366200838,1750114246280,-490.0,0.00016575,2]
[366200840,1750114246291,-490.0,0.00016575,2]
[366200842,1750114246302,-1699.08,0.00016575,2]
[366200844,1750114246313,-692.68,0.00016575,2]
[366200846,1750114246323,-490.0,0.00016575,2]
[366200850,1750114246340,-745.97,0.00016575,2]
[366200852,1750114246351,-490.0,0.00016575,2]
[366200854,1750114246362,-645.37,0.00016575,2]
[366200856,1750114246373,-490.0,0.00016575,2]
[366200858,1750114246385,-1307.87,0.00016575,2]
[366200860,1750114246395,-490.0,0.00016575,2]
[366200862,1750114246406,-490.0,0.00016575,2]
[366200864,1750114246416,-490.0,0.00016575,2]
[366200867,1750114246430,-545.55,0.00016575,2]
[366200869,1750114246443,-490.0,0.00016575,2]
[366200871,1750114246454,-787.51,0.00016575,2]
[366200872,1750114246468,-490.0,0.00016575,2]
[366200873,1750114246479,-1361.65,0.00016575,2]
[366200874,1750114246490,-490.0,0.00016575,2]
[366200876,1750114246501,-662.96,0.00016575,2]
[366200878,1750114246512,-589.78,0.00016575,2]
[366200879,1750114246523,-490.0,0.00016575,2]
[366200881,1750114246534,-738.84,0.00016575,2]
[366200883,1750114246545,-551.73,0.00016575,2]
[366200885,1750114246556,-1771.84,0.00016575,2]
[366200887,1750114246567,-1247.9,0.00016575,2]
[366200888,1750114246577,-317.93624579,0.00016575,2]
[366200889,1750114246587,-490.0,0.00016575,2]
[366200890,1750114246598,-1665.96,0.00016575,2]
[366200891,1750114246609,-490.0,0.00016575,2]
[366200892,1750114246620,-584.23,0.00016575,2]
[366200893,1750114246630,-1064.35,0.00016575,2]
[366200894,1750114246641,-490.0,0.00016575,2]
[366200895,1750114246652,-490.0,0.00016575,2]
[366200896,1750114246663,-2551.02,0.00016575,2]
[366200897,1750114246674,-818.48,0.00016575,2]
[366200898,1750114246685,-490.0,0.00016575,2]
[366200899,1750114246695,-871.82,0.00016575,2]
[366200900,1750114246708,-490.0,0.00016575,2]
[366200901,1750114246719,-490.0,0.00016575,2]
[366200902,1750114246729,-641.59,0.00016575,2]
[366200903,1750114246740,-490.0,0.00016575,2]
[366200904,1750114246752,-490.0,0.00016575,2]
[366200905,1750114246763,-490.0,0.00016575,2]
[366200906,1750114246774,-428.76618817,0.00016575,2]
[366200907,1750114246785,-490.0,0.00016575,2]
[366200908,1750114246796,-3775.8,0.00016575,2]
[366200909,1750114246811,-490.0,0.00016575,2]
[366200910,1750114246822,-492.29,0.00016575,2]
[366200911,1750114246833,-490.0,0.00016575,2]
[366200912,1750114246844,-490.0,0.00016575,2]
[366200913,1750114246855,-490.0,0.00016575,2]
[366200914,1750114246866,-490.0,0.00016575,2]
[366200915,1750114246878,-490.0,0.00016575,2]
[366200916,1750114246888,-490.0,0.00016575,2]
[366200917,1750114246899,-490.0,0.00016575,2]
[366200918,1750114246910,-490.0,0.00016575,2]
[366200919,1750114246922,-967.08,0.00016575,2]
[366200920,1750114246933,-1230.81,0.00016575,2]
[366200921,1750114246944,-598.95,0.00016575,2]
[366200922,1750114246958,-490.0,0.00016575,2]
[366200923,1750114246970,-836.23,0.00016575,2]
[366200924,1750114246982,-490.0,0.00016575,2]
[366200925,1750114246993,-490.0,0.00016575,2]
[366200926,1750114247004,-579.13,0.00016575,2]
[366200927,1750114247016,-490.0,0.00016575,2]
[366200928,1750114247027,-490.0,0.00016575,2]
[366200929,1750114247038,-729.0,0.00016575,2]
[366200930,1750114247050,-490.0,0.00016575,2]
[366200931,1750114247062,-490.0,0.00016575,2]
[366200932,1750114247073,-490.0,0.00016575,2]
[366200933,1750114247084,-490.0,0.00016575,2]
[366200934,1750114247096,-4087.42,0.00016575,2]
[366200935,1750114247108,-490.0,0.00016575,2]
[366200936,1750114247120,-490.0,0.00016575,2]
[366200937,1750114247132,-729.34,0.00016575,2]
[366200938,1750114247144,-828.39,0.00016575,2]
[366200939,1750114247158,-490.0,0.00016575,2]
[366200940,1750114247169,-736.8,0.00016575,2]
[366200941,1750114247181,-490.0,0.00016575,2]
[366200942,1750114247192,-495.05,0.00016575,2]
[366200943,1750114247204,-490.0,0.00016576,2]
[366200944,1750114247222,-490.0,0.00016576,2]
[366200945,1750114247234,-490.0,0.00016576,2]
[366200946,1750114247246,-535.17,0.00016576,2]
[366200947,1750114247258,-490.0,0.00016576,2]
[366200948,1750114247271,-490.0,0.00016576,2]
[366200949,1750114247283,-490.0,0.00016576,2]
[366200950,1750114247294,-490.0,0.00016576,2]
[366200951,1750114247306,-490.0,0.00016576,2]
[366200952,1750114247316,-490.0,0.00016576,2]
[366200953,1750114247328,-490.0,0.00016576,2]
[366200954,1750114247339,-490.0,0.00016576,2]
[366200955,1750114247353,-490.0,0.00016576,2]
[366200956,1750114247365,-490.0,0.00016576,2]
[366200957,1750114247377,-490.0,0.00016576,2]
[366200958,1750114247388,-490.0,0.00016576,2]
[366200959,1750114247399,-490.0,0.00016576,2]
[366200960,1750114247410,-490.0,0.00016576,2]
[366200961,1750114247421,-490.0,0.00016576,2]
[366200962,1750114247433,-490.0,0.00016576,2]
[366200963,1750114247444,-490.0,0.00016576,2]
[366200964,1750114247455,-1016.0,0.00016584,2]
[366200965,1750114247469,-946.0,0.00016584,2]
[366200966,1750114247480,-3333.0,0.00016584,2]
[366200967,1750114247491,-637.0,0.00016584,2]
[366200968,1750114247503,-802.0,0.00016584,2]
[366200969,1750114247515,-2003.0,0.00016584,2]
[366200970,1750114247526,-590.0,0.00016584,2]
[366200971,1750114247538,-1277.0,0.00016584,2]
[366200972,1750114247549,-558.0,0.00016584,2]
[366200973,1750114247560,-928.0,0.00016584,2]
[366200974,1750114247572,-1674.0,0.00016584,2]
[366200975,1750114247583,-7112.0,0.00016584,2]
[366200976,1750114247594,-854.0,0.00016584,2]
[366200977,1750114247605,-884.0,0.00016584,2]
[366200978,1750114247616,-4090.0,0.00016584,2]
[366200979,1750114247628,-809.95748097,0.0001659,2]
[366200980,1750114247639,-4127.53,0.00016595,2]
[366200981,1750114247650,-4668.08354399,0.000166,2]
[366200982,1750114247980,-45331.91645601,0.000166,2]
[366200983,1750114247992,-1876.6193735,0.000166,2]
[366200984,1750114248003,-156.55935743,0.00016613,2]
[366200985,1750114248015,-158.14369422,0.00016617,2]
[366200986,1750114248026,-809.95748097,0.00016624,2]
[366200987,1750114248037,-159.48396607,0.00016633,2]
[366200988,1750114248049,-216.65458595,0.0001664,2]
[366200989,1750114248060,-809.95748097,0.00016659,2]
[366200990,1750114248072,-1307.369789,0.0001666,2]
[366200991,1750114248084,-156.55935743,0.00016671,2]
[366200992,1750114248096,-980.94485654,0.00016683,2]
[366200993,1750114248108,-809.95748097,0.00016693,2]
[366200994,1750114248119,-1010.78,0.00016699,2]
[366200995,1750114248131,-107319.27452456,0.000167,2]
[366200996,1750114248142,-1876.6193735,0.000167,2]
[366200997,1750114248152,-1000.0,0.00016707,2]
[366200998,1750114248162,-1000.0,0.00016707,2]
[366200999,1750114248172,-1000.0,0.00016707,2]
[366201000,1750114248182,-1000.0,0.00016707,2]
[366201001,1750114248192,-1000.0,0.00016707,2]
[366201002,1750114248202,-1000.0,0.00016707,2]
[366201003,1750114248216,-1000.0,0.00016707,2]
[366201004,1750114248226,-1000.0,0.00016707,2]
[366201005,1750114248236,-1000.0,0.00016707,2]
[366201006,1750114248247,-1000.0,0.00016707,2]
[366201007,1750114248258,-180.1,0.00016712,2]
[366201008,1750114248269,-809.95748097,0.00016728,2]
[366201009,1750114248280,-156.55935743,0.00016728,2]
[366201010,1750114248290,-229.25,0.00016731,2]
[366201011,1750114248301,-490.0,0.00016739,2]
[366201012,1750114248311,-490.0,0.00016739,2]
[366201013,1750114248321,-490.0,0.00016739,2]
[366201014,1750114248334,-490.0,0.00016739,2]
[366201015,1750114248344,-981.1,0.00016739,2]
[366201016,1750114248354,-490.0,0.00016739,2]
[366201017,1750114248847,-686.76,0.00016739,2]
[366201018,1750114248869,-1369.72,0.00016739,2]
[366201019,1750114248891,-490.0,0.00016739,2]
[366201020,1750114248902,-490.0,0.00016739,2]
[366201021,1750114248913,-1538.06,0.00016739,2]
[366201022,1750114248923,-490.0,0.00016739,2]
[366201023,1750114248936,-490.0,0.00016739,2]
[366201024,1750114248948,-490.0,0.00016739,2]
[366201025,1750114248963,-490.0,0.00016739,2]
[366201026,1750114248974,-490.0,0.00016739,2]
[366201027,1750114248986,-996.47,0.00016739,2]
[366201028,1750114248998,-490.0,0.00016739,2]
[366201029,1750114249010,-490.0,0.00016739,2]
[366201030,1750114249021,-1278.98,0.00016739,2]
[366201031,1750114249033,-490.0,0.00016739,2]
[366201032,1750114249044,-490.0,0.00016739,2]
[366201033,1750114249054,-490.0,0.00016739,2]
[366201034,1750114249064,-490.0,0.00016739,2]
[366201035,1750114249075,-490.0,0.0001674,2]
[366201036,1750114249085,-490.0,0.0001674,2]
[366201037,1750114249095,-490.0,0.0001674,2]
[366201038,1750114249104,-490.0,0.0001674,2]
[366201039,1750114249114,-490.0,0.0001674,2]
[366201040,1750114249124,-490.0,0.0001674,2]
[366201041,1750114249134,-490.0,0.0001674,2]
[366201042,1750114249144,-490.0,0.0001674,2]
[366201043,1750114249155,-490.0,0.0001674,2]
[366201044,1750114249165,-219.42565355,0.0001674,2]
[366201045,1750114249175,-490.0,0.0001674,2]
[366201046,1750114249186,-490.0,0.0001674,2]
[366201047,1750114249196,-490.0,0.0001674,2]
[366201048,1750114249206,-490.0,0.0001674,2]
[366201049,1750114249219,-490.0,0.0001674,2]
[366201050,1750114249229,-490.0,0.0001674,2]
[366201051,1750114249239,-490.0,0.0001674,2]
[366201052,1750114249250,-490.0,0.0001674,2]
[366201053,1750114249260,-490.0,0.0001674,2]
[366201054,1750114249270,-520.81,0.0001674,2]
[366201055,1750114249280,-316.06046463,0.0001674,2]
[366201056,1750114249290,-490.0,0.0001674,2]
[366201057,1750114249300,-490.0,0.0001674,2]
[366201058,1750114249310,-490.0,0.0001674,2]
[366201059,1750114249319,-614.25215024,0.0001674,2]
[366201060,1750114249330,-567.14493494,0.0001674,2]
[366201061,1750114249341,-490.0,0.0001674,2]
[366201062,1750114249353,-490.0,0.0001674,2]
[366201063,1750114249363,-430.34592617,0.0001674,2]
[366201064,1750114249374,-490.0,0.0001674,2]
[366201065,1750114249384,-490.0,0.0001674,2]
[366201066,1750114249394,-251.69363932,0.0001674,2]
[366201067,1750114249405,-490.0,0.0001674,2]
[366201068,1750114249416,-517.07,0.0001674,2]
[366201069,1750114249428,-244.40705436,0.0001674,2]
[366201070,1750114249438,-490.0,0.0001674,2]
[366201071,1750114249450,-490.0,0.0001674,2]
[366201072,1750114249462,-1687.37,0.0001674,2]
[366201073,1750114249472,-4478.01,0.0001674,2]
[366201074,1750114249482,-490.0,0.0001674,2]
[366201075,1750114249491,-659.58,0.0001674,2]
[366201076,1750114249501,-490.0,0.0001674,2]
[366201077,1750114249513,-490.0,0.0001674,2]
[366201078,1750114249522,-1699.08,0.0001674,2]
[366201079,1750114249531,-692.68,0.0001674,2]
[366201080,1750114249541,-490.0,0.0001674,2]
[366201081,1750114249551,-745.97,0.0001674,2]
[366201082,1750114249561,-490.0,0.0001674,2]
[366201083,1750114249571,-645.37,0.0001674,2]
[366201084,1750114249581,-490.0,0.0001674,2]
[366201085,1750114249590,-1307.87,0.0001674,2]
[366201086,1750114249601,-490.0,0.0001674,2]
[366201087,1750114249611,-490.0,0.0001674,2]
[366201088,1750114249621,-490.0,0.0001674,2]
[366201089,1750114249631,-545.55,0.0001674,2]
[366201090,1750114249640,-787.51,0.0001674,2]
[366201091,1750114249650,-490.0,0.0001674,2]
[366201092,1750114249660,-490.0,0.0001674,2]
[366201093,1750114249670,-1361.65,0.0001674,2]
[366201094,1750114249680,-490.0,0.0001674,2]
[366201095,1750114249690,-662.96,0.0001674,2]
[366201096,1750114249700,-589.78,0.0001674,2]
[366201097,1750114249712,-490.0,0.0001674,2]
[366201098,1750114249722,-738.84,0.0001674,2]
[366201099,1750114249731,-551.73,0.0001674,2]
[366201100,1750114249741,-1771.84,0.0001674,2]
[366201101,1750114249751,-1247.9,0.0001674,2]
[366201102,1750114249761,-490.0,0.0001674,2]
[366201103,1750114249771,-1665.96,0.0001674,2]
[366201104,1750114249780,-490.0,0.0001674,2]
[366201105,1750114249790,-584.23,0.0001674,2]
[366201106,1750114249799,-1064.35,0.0001674,2]
[366201107,1750114249809,-490.0,0.0001674,2]
[366201108,1750114249819,-490.0,0.0001674,2]
[366201109,1750114249829,-2551.02,0.0001674,2]
[366201110,1750114249838,-818.48,0.0001674,2]
[366201111,1750114249848,-490.0,0.0001674,2]
[366201112,1750114249858,-871.82,0.0001674,2]
[366201113,1750114249867,-490.0,0.0001674,2]
[366201114,1750114249877,-207.99468217,0.0001674,2]
[366201115,1750114249887,-641.59,0.0001674,2]
[366201116,1750114249898,-490.0,0.0001674,2]
[366201117,1750114249907,-490.0,0.0001674,2]
[366201118,1750114249917,-490.0,0.0001674,2]
[366201119,1750114249927,-490.0,0.0001674,2]
[366201120,1750114249937,-3775.8,0.0001674,2]
[366201121,1750114249947,-490.0,0.0001674,2]
[366201122,1750114249959,-492.29,0.0001674,2]
[366201123,1750114249969,-490.0,0.0001674,2]
[366201124,1750114249978,-490.0,0.0001674,2]
[366201125,1750114249988,-490.0,0.0001674,2]
[366201126,1750114249998,-490.0,0.0001674,2]
[366201127,1750114250008,-490.0,0.0001674,2]
[366201128,1750114250018,-490.0,0.0001674,2]
[366201129,1750114250028,-490.0,0.0001674,2]
[366201130,1750114250038,-490.0,0.0001674,2]
[366201131,1750114250048,-967.08,0.0001674,2]
[366201132,1750114250057,-1230.81,0.0001674,2]
[366201133,1750114250067,-598.95,0.0001674,2]
[366201134,1750114250078,-490.0,0.0001674,2]
[366201135,1750114250089,-836.23,0.0001674,2]
[366201136,1750114250099,-490.0,0.0001674,2]
[366201137,1750114250109,-579.13,0.0001674,2]
[366201138,1750114250119,-490.0,0.0001674,2]
[366201139,1750114250128,-490.0,0.0001674,2]
[366201140,1750114250139,-490.0,0.0001674,2]